fUST/lending_fUST_20250530
["ID","MTS","AMOUNT","RATE_DAILY","PERIOD"]
[362970898,1748539754984,-430.0,0.00019178,2]
[362970899,1748539755008,-12398.97,0.00019178,2]
[362970900,1748539755031,-430.0,0.00019178,2]
[362970901,1748539755053,-15681.45,0.00019178,2]
[362970902,1748539755076,-430.0,0.00019178,2]
[362970903,1748539755098,-430.0,0.00019178,2]
[362970904,1748539755119,-500.0,0.00019178,2]
[362970905,1748539755140,-430.0,0.00019178,2]
[362970906,1748539755162,-430.0,0.00019178,2]
[362970907,1748539755183,-430.0,0.00019178,2]
[362970908,1748539755204,-430.0,0.00019178,2]
[362970909,1748539755225,-430.0,0.00019178,2]
[362970910,1748539755249,-430.0,0.00019178,2]
[362970911,1748539755271,-430.0,0.00019178,2]
[362970912,1748539755297,-430.0,0.00019178,2]
[362970913,1748539755320,-430.0,0.00019178,2]
[362970914,1748539755343,-154.968929,0.00019178,2]
[362970915,1748539755365,-302.8305173,0.0001942,2]
[362970916,1748539755387,-500.0,0.00019451,2]
[362970917,1748539755408,-500.0,0.00019451,2]
[362970918,1748539755428,-430.0,0.00019452,2]
[362970919,1748539755449,-430.0,0.00019452,2]
[362970920,1748539755470,-430.0,0.00019452,2]
[362970921,1748539755491,-430.0,0.00019452,2]
[362970922,1748539755513,-430.0,0.00019452,2]
[362970923,1748539755534,-430.0,0.00019452,2]
[362970924,1748539755556,-430.0,0.00019452,2]
[362970925,1748539755581,-5712.68,0.00019452,2]
[362970926,1748539755604,-430.0,0.00019452,2]
[362970927,1748539755626,-430.0,0.00019452,2]
[362970928,1748539755646,-154.56220099,0.00019452,2]
[362970929,1748539755668,-430.0,0.00019452,2]
[362970930,1748539755690,-430.0,0.00019452,2]
[362970931,1748539755710,-400.0,0.00019452,2]
[362970932,1748539755731,-416.63,0.00019452,2]
[362970933,1748539755755,-430.0,0.00019452,2]
[362970934,1748539755775,-430.0,0.00019452,2]
[362970935,1748539755796,-308.49200306,0.00019452,2]
[362970936,1748539755817,-430.0,0.00019452,2]
[362970937,1748539755841,-430.0,0.00019452,2]
[362970938,1748539755862,-400.0,0.00019452,2]
[362970939,1748539755883,-430.0,0.00019452,2]
[362970940,1748539755903,-345.23752478,0.00019452,2]
[362970941,1748539755925,-430.0,0.00019452,2]
[362970942,1748539755947,-430.0,0.00019452,2]
[362970943,1748539755969,-430.0,0.00019452,2]
[362970944,1748539755990,-430.0,0.00019452,2]
[362970945,1748539756013,-356.15844615,0.00019452,2]
[362970946,1748539756035,-592.77,0.00019452,2]
[362970947,1748539756056,-198.91355855,0.00019452,2]
[362970948,1748539756077,-340.0,0.00019452,2]
[362970949,1748539756100,-430.0,0.00019452,2]
[362970950,1748539756123,-472.98807301,0.00019452,2]
[362970951,1748539756145,-430.0,0.00019452,2]
[362970952,1748539756167,-430.0,0.00019452,2]
[362970953,1748539756192,-430.0,0.00019452,2]
[362970954,1748539756214,-430.0,0.00019452,2]
[362970955,1748539756237,-305.95459838,0.00019452,2]
[362970956,1748539756258,-430.0,0.00019452,2]
[362970957,1748539756279,-430.0,0.00019452,2]
[362970958,1748539756305,-3611.22,0.00019452,2]
[362970959,1748539756328,-6016.04,0.00019452,2]
[362970960,1748539756349,-411.94,0.00019452,2]
[362970961,1748539756371,-430.0,0.00019452,2]
[362970962,1748539756392,-430.0,0.00019452,2]
[362970963,1748539756416,-560.0,0.00019452,2]
[362970964,1748539756438,-325.53811815,0.00019452,2]
[362970965,1748539756460,-1780.32,0.00019452,2]
[362970966,1748539756481,-907.15,0.00019452,2]
[362970967,1748539756505,-5187.32,0.00019452,2]
[362970968,1748539756527,-430.0,0.00019452,2]
[362970969,1748539756549,-430.0,0.00019452,2]
[362970970,1748539756572,-243.13,0.00019452,2]
[362970971,1748539756593,-430.0,0.00019452,2]
[362970972,1748539756615,-430.0,0.00019452,2]
[362970973,1748539756637,-3366.97,0.00019452,2]
[362970974,1748539756659,-4243.92,0.00019452,2]
[362970975,1748539756682,-8125.19,0.00019452,2]
[362970976,1748539756704,-9218.61,0.00019452,2]
[362970977,1748539756726,-430.0,0.00019452,2]
[362970978,1748539756747,-430.0,0.00019452,2]
[362970979,1748539756774,-9822.81,0.00019452,2]
[362970980,1748539756796,-430.0,0.00019452,2]
[362970981,1748539756817,-6555.19,0.00019452,2]
[362970982,1748539756839,-5378.3,0.00019452,2]
[362970983,1748539756861,-430.0,0.00019452,2]
[362970984,1748539756883,-6050.15,0.00019452,2]
[362970985,1748539756903,-430.0,0.00019452,2]
[362970986,1748539756925,-10920.3,0.00019452,2]
[362970987,1748539757071,-256.59,0.00019452,2]
[362970988,1748539757094,-6045.43,0.00019452,2]
[362970989,1748539757115,-430.0,0.00019452,2]
[362970990,1748539757137,-430.0,0.00019452,2]
[362970991,1748539757159,-207.64,0.00019452,2]
[362970992,1748539757182,-1103.93,0.00019452,2]
[362970993,1748539757203,-430.0,0.00019452,2]
[362970994,1748539757225,-7893.27,0.00019452,2]
[362970995,1748539757246,-436.32290466,0.00019452,2]
[362970996,1748539757269,-430.0,0.00019452,2]
[362970998,1748539757294,-290.0,0.00019452,2]
[362970999,1748539757314,-430.0,0.00019452,2]
[362971000,1748539757336,-8394.02,0.00019452,2]
[362971001,1748539757357,-430.0,0.00019452,2]
[362971002,1748539757381,-18022.9,0.00019452,2]
[362971003,1748539757401,-430.0,0.00019452,2]
[362971004,1748539757422,-430.0,0.00019452,2]
[362971005,1748539757444,-3955.57,0.00019452,2]
[362971006,1748539757465,-430.0,0.00019452,2]
[362971007,1748539757486,-8092.4,0.00019452,2]
[362971008,1748539757507,-430.0,0.00019452,2]
[362971009,1748539757527,-430.0,0.00019452,2]
[362971010,1748539757548,-588.0,0.00019452,2]
[362971011,1748539757571,-430.0,0.00019452,2]
[362971012,1748539757592,-281.74,0.00019452,2]
[362971013,1748539757614,-567.93348212,0.00019452,2]
[362971014,1748539757636,-430.0,0.00019452,2]
[362971015,1748539757658,-430.0,0.00019452,2]
[362971016,1748539757680,-288.01,0.00019452,2]
[362971017,1748539757702,-430.0,0.00019452,2]
[362971018,1748539757723,-430.0,0.00019452,2]
[362971019,1748539757745,-3333.31,0.00019452,2]
[362971020,1748539757767,-6868.1,0.00019452,2]
[362971021,1748539757790,-4619.28,0.00019452,2]
[362971022,1748539757813,-9237.89,0.00019452,2]
[362971023,1748539757835,-1940.1,0.00019452,2]
[362971024,1748539757856,-430.0,0.00019452,2]
[362971025,1748539757877,-430.0,0.00019452,2]
[362971026,1748539757900,-12398.97,0.00019452,2]
[362971027,1748539757921,-430.0,0.00019452,2]
[362971028,1748539757942,-15681.45,0.00019452,2]
[362971029,1748539757964,-430.0,0.00019452,2]
[362971030,1748539757985,-430.0,0.00019452,2]
[362971031,1748539758006,-420.0,0.00019452,2]
[362971032,1748539758028,-430.0,0.00019452,2]
[362971033,1748539758049,-101518.19426977,0.000195,2]
[362971034,1748539758070,-500.0,0.00019725,2]
[362971035,1748539758093,-500.0,0.00019725,2]
[362971036,1748539758114,-5712.68,0.00019726,2]
[362971037,1748539758140,-436.67,0.00019726,2]
[362971038,1748539758163,-430.0,0.00019726,2]
[362971039,1748539758186,-430.0,0.00019726,2]
[362971040,1748539758207,-400.0,0.00019726,2]
[362971041,1748539758229,-430.0,0.00019726,2]
[362971042,1748539758251,-430.0,0.00019726,2]
[362971043,1748539758274,-430.0,0.00019726,2]
[362971044,1748539758298,-430.0,0.00019726,2]
[362971045,1748539758323,-430.0,0.00019726,2]
[362971046,1748539758345,-150.7,0.00019726,2]
[362971047,1748539758368,-430.0,0.00019726,2]
[362971048,1748539758391,-592.77,0.00019726,2]
[362971049,1748539758414,-430.0,0.00019726,2]
[362971050,1748539758435,-430.0,0.00019726,2]
[362971051,1748539758457,-430.0,0.00019726,2]
[362971052,1748539758479,-3611.22,0.00019726,2]
[362971053,1748539758502,-6016.04,0.00019726,2]
[362971054,1748539758526,-430.0,0.00019726,2]
[362971055,1748539758549,-430.0,0.00019726,2]
[362971056,1748539758571,-1780.32,0.00019726,2]
[362971057,1748539758593,-907.15,0.00019726,2]
[362971058,1748539758616,-5187.32,0.00019726,2]
[362971059,1748539758637,-430.0,0.00019726,2]
[362971060,1748539758658,-430.0,0.00019726,2]
[362971061,1748539758680,-372.8235468,0.00019726,2]
[362971062,1748539758703,-3366.97,0.00019726,2]
[362971063,1748539758726,-4243.92,0.00019726,2]
[362971064,1748539758749,-8125.19,0.00019726,2]
[362971065,1748539758776,-9218.61,0.00019726,2]
[362971066,1748539758799,-430.0,0.00019726,2]
[362971067,1748539758822,-9822.81,0.00019726,2]
[362971068,1748539758843,-430.0,0.00019726,2]
[362971069,1748539758864,-6555.19,0.00019726,2]
[362971070,1748539758885,-5378.3,0.00019726,2]
[362971071,1748539758906,-430.0,0.00019726,2]
[362971072,1748539758927,-6050.15,0.00019726,2]
[362971073,1748539758949,-430.0,0.00019726,2]
[362971074,1748539758970,-10920.3,0.00019726,2]
[362971075,1748539758992,-6045.43,0.00019726,2]
[362971076,1748539759017,-430.0,0.00019726,2]
[362971077,1748539759040,-430.0,0.00019726,2]
[362971078,1748539759065,-1103.93,0.00019726,2]
[362971079,1748539759086,-430.0,0.00019726,2]
[362971080,1748539759108,-6187.56229818,0.00019726,2]
[362971081,1748539760201,-165.4,0.00017785,2]
[362971082,1748539760239,-299.44363022,0.00019178,2]
[362971083,1748539760260,-430.0,0.00019178,2]
[362971084,1748539760281,-250.9116653,0.00019452,2]
[362971086,1748539764093,-290.0,0.00019178,2]
[362971087,1748539764114,-380.0,0.00019178,2]
[362971088,1748539764137,-179.0883347,0.00019452,2]
[362971089,1748539764158,-1705.70770182,0.00019726,2]
[362971090,1748539764178,-430.0,0.00019726,2]
[362971091,1748539764199,-430.0,0.00019726,2]
[362971092,1748539764219,-8394.02,0.00019726,2]
[362971093,1748539764240,-430.0,0.00019726,2]
[362971094,1748539764263,-18022.9,0.00019726,2]
[362971095,1748539764283,-190.61,0.00019726,2]
[362971096,1748539764308,-430.0,0.00019726,2]
[362971097,1748539764329,-3955.57,0.00019726,2]
[362971098,1748539764351,-430.0,0.00019726,2]
[362971099,1748539764371,-8092.4,0.00019726,2]
[362971100,1748539764400,-430.0,0.00019726,2]
[362971101,1748539764420,-588.0,0.00019726,2]
[362971102,1748539764442,-430.0,0.00019726,2]
[362971103,1748539764464,-430.0,0.00019726,2]
[362971104,1748539764486,-430.0,0.00019726,2]
[362971105,1748539764508,-430.0,0.00019726,2]
[362971106,1748539764528,-430.0,0.00019726,2]
[362971107,1748539764550,-3333.31,0.00019726,2]
[362971108,1748539764572,-6868.1,0.00019726,2]
[362971109,1748539764597,-4619.28,0.00019726,2]
[362971110,1748539764620,-9237.89,0.00019726,2]
[362971111,1748539764642,-1940.1,0.00019726,2]
[362971112,1748539764662,-430.0,0.00019726,2]
[362971113,1748539764682,-430.0,0.00019726,2]
[362971114,1748539764704,-12398.97,0.00019726,2]
[362971115,1748539764725,-430.0,0.00019726,2]
[362971116,1748539764745,-15681.45,0.00019726,2]
[362971117,1748539764767,-430.0,0.00019726,2]
[362971118,1748539764787,-244.91,0.00019726,2]
[362971119,1748539764808,-430.0,0.00019726,2]
[362971120,1748539764831,-488.65686457,0.00019726,2]
[362971121,1748539764852,-302.8305173,0.00019763,2]
[362971122,1748539764873,-500.0,0.00019999,2]
[362971123,1748539764893,-500.0,0.00019999,2]
[362971124,1748539764913,-5712.68,0.0002,2]
[362971125,1748539764934,-430.0,0.0002,2]
[362971126,1748539764956,-430.0,0.0002,2]
[362971127,1748539764977,-349.72,0.0002,2]
[362971128,1748539764998,-400.0,0.0002,2]
[362971129,1748539765020,-421.59105719,0.0002,2]
[362971130,1748539765040,-430.0,0.0002,2]
[362971131,1748539765061,-592.77,0.0002,2]
[362971132,1748539765083,-430.0,0.0002,2]
[362971133,1748539765103,-430.0,0.0002,2]
[362971134,1748539765123,-3611.22,0.0002,2]
[362971135,1748539765144,-293.02,0.0002,2]
[362971136,1748539765164,-430.0,0.0002,2]
[362971137,1748539765185,-1780.32,0.0002,2]
[362971138,1748539765205,-907.15,0.0002,2]
[362971139,1748539765229,-5187.32,0.0002,2]
[362971140,1748539765250,-430.0,0.0002,2]
[362971141,1748539765272,-430.0,0.0002,2]
[362971142,1748539765296,-3366.97,0.0002,2]
[362971143,1748539765317,-4243.92,0.0002,2]
[362971144,1748539765340,-9218.61,0.0002,2]
[362971145,1748539765362,-176.42,0.0002,2]
[362971146,1748539765384,-9822.81,0.0002,2]
[362971147,1748539765404,-6555.19,0.0002,2]
[362971148,1748539765424,-5378.3,0.0002,2]
[362971149,1748539765445,-450.56,0.0002,2]
[362971150,1748539765467,-10920.3,0.0002,2]
[362971151,1748539765488,-6045.43,0.0002,2]
[362971152,1748539765508,-430.0,0.0002,2]
[362971153,1748539765529,-430.0,0.0002,2]
[362971154,1748539765552,-1103.93,0.0002,2]
[362971155,1748539765573,-430.0,0.0002,2]
[362971156,1748539765595,-7893.27,0.0002,2]
[362971157,1748539765615,-430.0,0.0002,2]
[362971158,1748539765634,-8394.02,0.0002,2]
[362971159,1748539765656,-430.0,0.0002,2]
[362971160,1748539765678,-18022.9,0.0002,2]
[362971161,1748539765824,-430.0,0.0002,2]
[362971162,1748539765845,-3955.57,0.0002,2]
[362971163,1748539765866,-430.0,0.0002,2]
[362971164,1748539765886,-8092.4,0.0002,2]
[362971165,1748539765909,-430.0,0.0002,2]
[362971166,1748539765930,-588.0,0.0002,2]
[362971167,1748539765952,-430.0,0.0002,2]
[362971168,1748539765973,-430.0,0.0002,2]
[362971169,1748539765994,-430.0,0.0002,2]
[362971170,1748539766016,-430.0,0.0002,2]
[362971171,1748539766037,-490.71,0.0002,2]
[362971172,1748539766058,-3333.31,0.0002,2]
[362971173,1748539766080,-6868.1,0.0002,2]
[362971174,1748539766102,-4619.28,0.0002,2]
[362971175,1748539766125,-9237.89,0.0002,2]
[362971176,1748539766150,-1940.1,0.0002,2]
[362971177,1748539766172,-430.0,0.0002,2]
[362971178,1748539766192,-430.0,0.0002,2]
[362971179,1748539766214,-12398.97,0.0002,2]
[362971180,1748539766234,-360.73414029,0.0002,2]
[362971181,1748539766254,-15681.45,0.0002,2]
[362971182,1748539766276,-430.0,0.0002,2]
[362971183,1748539766298,-430.0,0.0002,2]
[362971184,1748539766321,-302.8305173,0.00020105,2]
[362971185,1748539766342,-205.09207687,0.0002011,2]
[362971186,1748539766362,-500.0,0.0002011,2]
[362971187,1748539766383,-167.87049797,0.0002011,2]
[362971188,1748539766407,-500.0,0.0002011,2]
[362971189,1748539766426,-500.0,0.0002011,2]
[362971190,1748539766447,-500.0,0.00020137,2]
[362971191,1748539766468,-500.0,0.00020137,2]
[362971192,1748539766488,-500.0,0.00020137,2]
[362971193,1748539766508,-279.01,0.00020165,2]
[362971194,1748539766532,-500.0,0.00020165,2]
[362971195,1748539766552,-500.0,0.00020165,2]
[362971196,1748539766571,-167.40859968,0.00020173,2]
[362971197,1748539766592,-882.947983,0.00020187,2]
[362971198,1748539766612,-500.0,0.00020192,2]
[362971199,1748539766634,-500.0,0.00020192,2]
[362971200,1748539766658,-500.0,0.0002022,2]
[362971201,1748539766679,-183.07715907,0.0002022,2]
[362971202,1748539766702,-160.0,0.00020223,2]
[362971203,1748539766723,-229.26895353,0.00020223,2]
[362971204,1748539766743,-423.31762986,0.00020228,2]
[362971205,1748539766764,-842.5625,0.00020228,2]
[362971206,1748539766784,-212.70147903,0.00020235,2]
[362971207,1748539766805,-500.0,0.00020247,2]
[362971208,1748539766826,-95566.53459567,0.00020271,2]
[362971209,1748539766847,-500.0,0.00020272,2]
[362971210,1748539766868,-160.0,0.00020272,2]
[362971211,1748539766887,-500.0,0.00020272,2]
[362971212,1748539766907,-501.38712862,0.00020273,2]
[362971213,1748539766926,-190.05658334,0.00020273,2]
[362971214,1748539766946,-5712.68,0.00020273,2]
[362971215,1748539766966,-417.0,0.00020273,2]
[362971216,1748539766986,-430.0,0.00020273,2]
[362971217,1748539767006,-261.35002777,0.00020273,2]
[362971218,1748539767028,-592.77,0.00020273,2]
[362971219,1748539767049,-274.54,0.00020273,2]
[362971220,1748539767069,-430.0,0.00020273,2]
[362971221,1748539767092,-3611.22,0.00020273,2]
[362971222,1748539767114,-430.0,0.00020273,2]
[362971223,1748539767135,-1780.32,0.00020273,2]
[362971224,1748539767157,-907.15,0.00020273,2]
[362971225,1748539767180,-5187.32,0.00020273,2]
[362971226,1748539767200,-430.0,0.00020273,2]
[362971227,1748539767221,-336.52,0.00020273,2]
[362971228,1748539767242,-3366.97,0.00020273,2]
[362971229,1748539767265,-4243.92,0.00020273,2]
[362971230,1748539767287,-9218.61,0.00020273,2]
[362971231,1748539767314,-9822.81,0.00020273,2]
[362971232,1748539767335,-6555.19,0.00020273,2]
[362971233,1748539767355,-5378.3,0.00020273,2]
[362971234,1748539767378,-10920.3,0.00020273,2]
[362971235,1748539767401,-6045.43,0.00020273,2]
[362971236,1748539767421,-430.0,0.00020273,2]
[362971237,1748539767441,-430.0,0.00020273,2]
[362971238,1748539767463,-1103.93,0.00020273,2]
[362971239,1748539767483,-430.0,0.00020273,2]
[362971240,1748539767504,-7893.27,0.00020273,2]
[362971241,1748539767526,-430.0,0.00020273,2]
[362971242,1748539767547,-8394.02,0.00020273,2]
[362971243,1748539767568,-455.23395835,0.00020273,2]
[362971244,1748539767589,-18022.9,0.00020273,2]
[362971245,1748539767610,-430.0,0.00020273,2]
[362971246,1748539767632,-3955.57,0.00020273,2]
[362971247,1748539767653,-430.0,0.00020273,2]
[362971248,1748539767673,-8092.4,0.00020273,2]
[362971249,1748539767695,-430.0,0.00020273,2]
[362971250,1748539767715,-588.0,0.00020273,2]
[362971251,1748539767736,-430.0,0.00020273,2]
[362971252,1748539767757,-430.0,0.00020273,2]
[362971253,1748539767780,-430.0,0.00020273,2]
[362971254,1748539767802,-430.0,0.00020273,2]
[362971255,1748539767823,-3333.31,0.00020273,2]
[362971256,1748539767845,-6868.1,0.00020273,2]
[362971257,1748539767868,-4619.28,0.00020273,2]
[362971258,1748539767890,-9237.89,0.00020273,2]
[362971259,1748539767910,-1940.1,0.00020273,2]
[362971260,1748539767932,-430.0,0.00020273,2]
[362971261,1748539767955,-430.0,0.00020273,2]
[362971262,1748539767978,-12398.97,0.00020273,2]
[362971263,1748539767998,-15681.45,0.00020273,2]
[362971264,1748539768020,-430.0,0.00020273,2]
[362971265,1748539768041,-430.0,0.00020273,2]
[362971266,1748539768062,-500.0,0.00020274,2]
[362971267,1748539768084,-500.0,0.00020302,2]
[362971268,1748539768104,-500.0,0.00020329,2]
[362971269,1748539768124,-503.09515564,0.00020357,2]
[362971270,1748539768144,-302.8305173,0.00020447,2]
[362971271,1748539768277,-221.326,0.00020504,2]
[362971272,1748539768300,-424.68,0.00020538,3]
[362971273,1748539768322,-500.0,0.00020546,2]
[362971274,1748539768343,-500.0,0.00020546,2]
[362971275,1748539768363,-5712.68,0.00020547,2]
[362971276,1748539768385,-492.36566025,0.00020547,2]
[362971277,1748539768406,-592.77,0.00020547,2]
[362971278,1748539768426,-430.0,0.00020547,2]
[362971279,1748539768447,-3611.22,0.00020547,2]
[362971280,1748539768468,-430.0,0.00020547,2]
[362971281,1748539768490,-1780.32,0.00020547,2]
[362971282,1748539768511,-907.15,0.00020547,2]
[362971283,1748539768533,-5187.32,0.00020547,2]
[362971284,1748539768554,-314.51,0.00020547,2]
[362971285,1748539768575,-3366.97,0.00020547,2]
[362971286,1748539768596,-4243.92,0.00020547,2]
[362971287,1748539768618,-9218.61,0.00020547,2]
[362971288,1748539768639,-9822.81,0.00020547,2]
[362971289,1748539768660,-6555.19,0.00020547,2]
[362971290,1748539768680,-5378.3,0.00020547,2]
[362971291,1748539768702,-10920.3,0.00020547,2]
[362971292,1748539768724,-6045.43,0.00020547,2]
[362971293,1748539768745,-430.0,0.00020547,2]
[362971294,1748539768767,-430.0,0.00020547,2]
[362971295,1748539768790,-1103.93,0.00020547,2]
[362971296,1748539768814,-430.0,0.00020547,2]
[362971297,1748539768836,-7893.27,0.00020547,2]
[362971298,1748539768857,-430.0,0.00020547,2]
[362971299,1748539768878,-8394.02,0.00020547,2]
[362971300,1748539768900,-9707.98767275,0.00020547,2]
[362971301,1748539769109,-430.0,0.00019178,2]
[362971302,1748539770894,430.0,0.00019178,2]
[362971303,1748539771109,-972.10842807,0.00020547,2]
[362971304,1748539771152,-889.48152069,0.00020547,2]
[362971305,1748539771509,188.39715867,0.00019452,2]
[362971306,1748539773096,-220.31,0.00019178,2]
[362971307,1748539773123,-241.60284133,0.00019452,2]
[362971308,1748539773152,-481.22,0.00019726,2]
[362971309,1748539773180,-149.407195,0.00020547,2]
[362971312,1748539823322,156.38,0.000178,2]
[362971358,1748539832577,-208.5,0.00019169,2]
[362971360,1748539832587,-300.0,0.00019177,2]
[362971361,1748539832596,-430.0,0.00019178,2]
[362971362,1748539832605,-861.47,0.00019178,2]
[362971363,1748539832615,-430.0,0.00019178,2]
[362971364,1748539832624,-391.70334469,0.00019178,2]
[362971365,1748539832633,-430.0,0.00019178,2]
[362971366,1748539832643,-6913.96,0.00019178,2]
[362971367,1748539832651,-9275.15795282,0.00019178,2]
[362971398,1748539838206,-250.61839818,0.00019178,2]
[362971410,1748539838316,-2651.560762,0.00019178,2]
[362971426,1748539838431,-1918.632887,0.00019178,2]
[362971428,1748539838440,-310.0,0.00019178,2]
[362971430,1748539838450,-430.0,0.00019178,2]
[362971432,1748539838459,-2525.23,0.00019178,2]
[362971435,1748539838468,-242.37669839,0.00019178,2]
[362971437,1748539838477,-2508.83,0.00019178,2]
[362971440,1748539838486,-2508.83,0.00019178,2]
[362971442,1748539838495,-2508.83,0.00019178,2]
[362971444,1748539838504,-2508.83,0.00019178,2]
[362971446,1748539838513,-2508.83,0.00019178,2]
[362971448,1748539838523,-430.0,0.00019178,2]
[362971450,1748539838531,-430.0,0.00019178,2]
[362971452,1748539838540,-2508.83,0.00019178,2]
[362971454,1748539838550,-2508.83,0.00019178,2]
[362971456,1748539838559,-2508.83,0.00019178,2]
[362971458,1748539838568,-2508.83,0.00019178,2]
[362971460,1748539838578,-2508.83,0.00019178,2]
[362971462,1748539838587,-2508.83,0.00019178,2]
[362971464,1748539838596,-2508.83,0.00019178,2]
[362971466,1748539838605,-2508.83,0.00019178,2]
[362971468,1748539838614,-2508.83,0.00019178,2]
[362971470,1748539838623,-430.0,0.00019452,2]
[362971472,1748539838633,-861.47,0.00019452,2]
[362971474,1748539838642,-430.0,0.00019452,2]
[362971476,1748539838651,-430.0,0.00019452,2]
[362971478,1748539838660,-6913.96,0.00019452,2]
[362971480,1748539838669,-14095.97,0.00019452,2]
[362971482,1748539838678,-2525.23,0.00019452,2]
[362971484,1748539838687,-157.62907974,0.00019626,2]
[362971486,1748539838696,-430.0,0.00019726,2]
[362971488,1748539838706,-861.47,0.00019726,2]
[362971490,1748539838715,-430.0,0.00019726,2]
[362971492,1748539838724,-430.0,0.00019726,2]
[362971494,1748539838733,-6913.96,0.00019726,2]
[362971496,1748539838742,-14095.97,0.00019726,2]
[362971498,1748539838751,-2525.23,0.00019726,2]
[362971500,1748539838760,-430.0,0.0002,2]
[362971502,1748539838769,-861.47,0.0002,2]
[362971504,1748539838778,-430.0,0.0002,2]
[362971506,1748539838787,-430.0,0.0002,2]
[362971508,1748539838796,-6913.96,0.0002,2]
[362971509,1748539838805,-14095.97,0.0002,2]
[362971510,1748539838814,-2525.23,0.0002,2]
[362971511,1748539838824,-500.0,0.00020272,2]
[362971512,1748539838834,-798.75712719,0.00020272,2]
[362971513,1748539838843,-500.0,0.00020272,2]
[362971514,1748539838853,-500.0,0.00020272,2]
[362971515,1748539838862,-798.75712719,0.00020272,2]
[362971516,1748539838871,-500.0,0.00020272,2]
[362971517,1748539838880,-798.75712719,0.00020272,2]
[362971518,1748539838890,-211.41193952,0.00020272,2]
[362971519,1748539838899,-798.75712719,0.00020272,2]
[362971520,1748539838909,-798.75712719,0.00020272,2]
[362971521,1748539838918,-611.47458106,0.00020272,2]
[362971522,1748539838928,-798.75712719,0.00020272,2]
[362971523,1748539838937,-798.75712719,0.00020272,2]
[362971524,1748539838946,-798.75712719,0.00020272,2]
[362971525,1748539838956,-798.75712719,0.00020272,2]
[362971526,1748539838965,-500.0,0.00020272,2]
[362971527,1748539838975,-500.0,0.00020272,2]
[362971528,1748539838984,-798.75712719,0.00020272,2]
[362971529,1748539838993,-500.0,0.00020272,2]
[362971530,1748539839003,-798.75712719,0.00020272,2]
[362971531,1748539839012,-798.75712719,0.00020272,2]
[362971532,1748539839021,-500.1699879,0.00020272,2]
[362971533,1748539839031,-798.75712719,0.00020272,2]
[362971535,1748539839040,-798.75712719,0.00020272,2]
[362971537,1748539839049,-798.75712719,0.00020272,2]
[362971539,1748539839059,-798.75712719,0.00020272,2]
[362971541,1748539839068,-798.75712719,0.00020272,2]
[362971543,1748539839077,-798.75712719,0.00020272,2]
[362971545,1748539839087,-430.0,0.00020273,2]
[362971546,1748539839098,-861.47,0.00020273,2]
[362971549,1748539839107,-430.0,0.00020273,2]
[362971551,1748539839117,-430.0,0.00020273,2]
[362971552,1748539839126,-6913.96,0.00020273,2]
[362971554,1748539839136,-14095.97,0.00020273,2]
[362971556,1748539839145,-2525.23,0.00020273,2]